[Event "Late-Titled-Tuesday-Blitz-April-30-2024"]
[Site "Chess.com"]
[Date "2024.04.30"]
[Round "2"]
[White "KVAIDAN"]
[Black "m_ezat"]
[Result "1-0"]
[WhiteElo "2355"]
[BlackElo "2520"]
[TimeControl "180+1"]
[EndTime "14:14:47 PDT"]
[Termination "KVAIDAN won by resignation"]

1. f4 {[%clk 0:02:50.1]} 1... e5 {[%clk 0:02:56.5]} 2. d3 {[%clk 0:02:49.6]}
2... d6 {[%clk 0:02:55.3]} 3. Nf3 {[%clk 0:02:49.1]} 3... Nc6 {[%clk 0:02:54.1]}
4. e4 {[%clk 0:02:49.2]} 4... Bg4 {[%clk 0:02:53.2]} 5. Be2 {[%clk 0:02:48.4]}
5... Nf6 {[%clk 0:02:51.7]} 6. Nc3 {[%clk 0:02:48]} 6... Bxf3 {[%clk 0:02:49.3]}
7. Bxf3 {[%clk 0:02:47.9]} 7... Nd4 {[%clk 0:02:49.1]} 8. O-O {[%clk 0:02:48.3]}
8... c6 {[%clk 0:02:49.2]} 9. Ne2 {[%clk 0:02:46.7]} 9... Nxf3+ {[%clk
0:02:48.3]} 10. Rxf3 {[%clk 0:02:47.2]} 10... h5 {[%clk 0:02:46.9]} 11. c3
{[%clk 0:02:45.2]} 11... Ng4 {[%clk 0:02:45]} 12. h3 {[%clk 0:02:39.3]} 12...
Qb6+ {[%clk 0:02:39.5]} 13. d4 {[%clk 0:02:39.4]} 13... Nf6 {[%clk 0:02:36.4]}
14. Qd3 {[%clk 0:02:35.6]} 14... d5 {[%clk 0:02:34.5]} 15. exd5 {[%clk 0:02:33]}
15... e4 {[%clk 0:02:33.1]} 16. Re3 {[%clk 0:02:29.7]} 16... O-O-O {[%clk
0:02:26.4]} 17. Qc2 {[%clk 0:02:26.8]} 17... cxd5 {[%clk 0:02:21.5]} 18. c4
{[%clk 0:02:26.6]} 18... Kb8 {[%clk 0:02:19.3]} 19. c5 {[%clk 0:02:26.5]} 19...
Qc7 {[%clk 0:02:14.6]} 20. b4 {[%clk 0:02:25.4]} 20... Rg8 {[%clk 0:02:13.4]}
21. a4 {[%clk 0:02:19.3]} 21... g5 {[%clk 0:02:12.3]} 22. f5 {[%clk 0:02:16.7]}
22... g4 {[%clk 0:02:08.9]} 23. h4 {[%clk 0:02:15.3]} 23... g3 {[%clk
0:02:07.6]} 24. b5 {[%clk 0:02:13.1]} 24... Ng4 {[%clk 0:01:56.6]} 25. Rxg3
{[%clk 0:02:06.9]} 25... Bg7 {[%clk 0:01:42.9]} 26. Rxg4 {[%clk 0:02:00.6]}
26... hxg4 {[%clk 0:01:41.5]} 27. Bf4 {[%clk 0:02:01]} 27... Be5 {[%clk
0:01:40.9]} 28. Bxe5 {[%clk 0:01:59.1]} 1-0

[Event "Late-Titled-Tuesday-Blitz-April-30-2024"]
[Site "Chess.com"]
[Date "2024.04.30"]
[Round "2"]
[White "FairChess_on_YouTube"]
[Black "Casablanca"]
[Result "1-0"]
[WhiteElo "3098"]
[BlackElo "2641"]
[TimeControl "180+1"]
[EndTime "14:15:07 PDT"]
[Termination "FairChess_on_YouTube won by resignation"]

1. d4 {[%clk 0:03:00.9]} 1... Nf6 {[%clk 0:02:57.9]} 2. c4 {[%clk 0:03:01.3]}
2... e6 {[%clk 0:02:57.1]} 3. Nf3 {[%clk 0:03:00.8]} 3... Bb4+ {[%clk
0:02:55.2]} 4. Nbd2 {[%clk 0:03:00.2]} 4... O-O {[%clk 0:02:55]} 5. a3 {[%clk
0:03:00.4]} 5... Be7 {[%clk 0:02:55.4]} 6. e4 {[%clk 0:02:59.7]} 6... d5 {[%clk
0:02:56]} 7. e5 {[%clk 0:02:58.8]} 7... Ne4 {[%clk 0:02:56.3]} 8. Bd3 {[%clk
0:02:57.8]} 8... Nxd2 {[%clk 0:02:50.2]} 9. Bxd2 {[%clk 0:02:58.7]} 9... dxc4
{[%clk 0:02:49.6]} 10. Bxc4 {[%clk 0:02:58.3]} 10... c5 {[%clk 0:02:49.8]} 11.
dxc5 {[%clk 0:02:57.8]} 11... Bxc5 {[%clk 0:02:49.7]} 12. O-O {[%clk 0:02:57.3]}
12... Nc6 {[%clk 0:02:49.6]} 13. Qe2 {[%clk 0:02:55.8]} 13... Bd7 {[%clk
0:02:29.8]} 14. Rad1 {[%clk 0:02:50.5]} 14... Qc7 {[%clk 0:02:27.4]} 15. Qe4
{[%clk 0:02:48.4]} 15... Rfd8 {[%clk 0:02:24.8]} 16. Ng5 {[%clk 0:02:43.1]}
16... g6 {[%clk 0:02:17.2]} 17. Qh4 {[%clk 0:02:42.3]} 17... h5 {[%clk 0:02:12]}
18. Nxf7 {[%clk 0:02:42.4]} 18... Nxe5 {[%clk 0:02:10.5]} 19. Nxd8 {[%clk
0:02:36.7]} 19... Nxc4 {[%clk 0:02:07.6]} 20. Qf6 {[%clk 0:02:20.9]} 20... Rxd8
{[%clk 0:01:41.4]} 21. Qxg6+ {[%clk 0:02:18.8]} 21... Kh8 {[%clk 0:01:42.1]} 22.
Qxh5+ {[%clk 0:02:11.7]} 22... Kg8 {[%clk 0:01:38.8]} 23. Qg6+ {[%clk
0:02:11.7]} 23... Kh8 {[%clk 0:01:37]} 24. Bg5 {[%clk 0:01:43.7]} 24... Rf8
{[%clk 0:01:34.9]} 25. Bf6+ {[%clk 0:01:42.6]} 25... Rxf6 {[%clk 0:01:35.1]} 26.
Qxf6+ {[%clk 0:01:43.4]} 26... Kg8 {[%clk 0:01:34.3]} 27. Qg5+ {[%clk 0:01:42]}
27... Kf7 {[%clk 0:01:33.3]} 28. Rxd7+ {[%clk 0:01:41.5]} 28... Qxd7 {[%clk
0:01:34.2]} 29. Qxc5 {[%clk 0:01:41.3]} 1-0

[Event "Late-Titled-Tuesday-Blitz-April-30-2024"]
[Site "Chess.com"]
[Date "2024.04.30"]
[Round "2"]
[White "Mops_2004"]
[Black "KnobbedHornbill"]
[Result "1-0"]
[WhiteElo "2799"]
[BlackElo "2547"]
[TimeControl "180+1"]
[EndTime "14:15:24 PDT"]
[Termination "Mops_2004 won by resignation"]

1. g3 {[%clk 0:03:00.9]} 1... d5 {[%clk 0:02:59.5]} 2. Nf3 {[%clk 0:03:00.8]}
2... Nf6 {[%clk 0:03:00]} 3. Bg2 {[%clk 0:03:00.8]} 3... g6 {[%clk 0:03:00.8]}
4. b3 {[%clk 0:03:00.8]} 4... Bg7 {[%clk 0:03:01.3]} 5. Bb2 {[%clk 0:03:01.5]}
5... O-O {[%clk 0:03:01.6]} 6. c4 {[%clk 0:03:02.2]} 6... c6 {[%clk 0:02:57.9]}
7. O-O {[%clk 0:03:02.3]} 7... Na6 {[%clk 0:02:53.6]} 8. d3 {[%clk 0:03:00.3]}
8... Nc5 {[%clk 0:02:53.2]} 9. Nbd2 {[%clk 0:03:00.3]} 9... a5 {[%clk
0:02:52.4]} 10. a3 {[%clk 0:02:56.2]} 10... Bg4 {[%clk 0:02:47.3]} 11. Qc2
{[%clk 0:02:54.2]} 11... Ncd7 {[%clk 0:02:37.2]} 12. e4 {[%clk 0:02:50.2]} 12...
dxe4 {[%clk 0:02:30.7]} 13. dxe4 {[%clk 0:02:51.1]} 13... Nc5 {[%clk 0:02:28]}
14. Ne5 {[%clk 0:02:44.4]} 14... Be2 {[%clk 0:02:07.7]} 15. Rfe1 {[%clk
0:02:44.1]} 15... Bd3 {[%clk 0:02:08.2]} 16. Qc1 {[%clk 0:02:33.7]} 16... Nfd7
{[%clk 0:02:02.1]} 17. Nxd7 {[%clk 0:02:09.6]} 17... Qxd7 {[%clk 0:02:03]} 18.
Bxg7 {[%clk 0:02:09.4]} 18... Kxg7 {[%clk 0:02:01.7]} 19. Qc3+ {[%clk
0:01:55.7]} 19... f6 {[%clk 0:02:00.4]} 20. Rad1 {[%clk 0:01:54.8]} 20... Rfd8
{[%clk 0:01:52.2]} 21. b4 {[%clk 0:01:43.2]} 21... axb4 {[%clk 0:01:51]} 22.
axb4 {[%clk 0:01:44.1]} 22... Na4 {[%clk 0:01:50.2]} 23. Qb3 {[%clk 0:01:44.2]}
23... Nb6 {[%clk 0:01:44.8]} 24. c5 {[%clk 0:01:39.2]} 24... Nc8 {[%clk
0:01:21]} 25. Nf3 {[%clk 0:01:39]} 25... Bc4 {[%clk 0:01:15.9]} 26. Rxd7 {[%clk
0:01:37.3]} 1-0

[Event "Late-Titled-Tuesday-Blitz-April-30-2024"]
[Site "Chess.com"]
[Date "2024.04.30"]
[Round "2"]
[White "Pig-filth"]
[Black "TangerineandLemon25"]
[Result "1-0"]
[WhiteElo "2291"]
[BlackElo "2661"]
[TimeControl "180+1"]
[EndTime "14:15:27 PDT"]
[Termination "Pig-filth won by resignation"]

1. d4 {[%clk 0:03:00.9]} 1... d5 {[%clk 0:02:59.7]} 2. Bg5 {[%clk 0:03:00.8]}
2... Nf6 {[%clk 0:02:57.8]} 3. Bxf6 {[%clk 0:03:00.9]} 3... gxf6 {[%clk
0:02:58.7]} 4. e3 {[%clk 0:03:00.7]} 4... e6 {[%clk 0:02:59.1]} 5. c4 {[%clk
0:02:58.9]} 5... c5 {[%clk 0:02:09.4]} 6. cxd5 {[%clk 0:02:55.4]} 6... Qxd5
{[%clk 0:02:02.8]} 7. Nc3 {[%clk 0:02:49.7]} 7... Qd8 {[%clk 0:02:02.1]} 8. d5
{[%clk 0:02:45.2]} 8... a6 {[%clk 0:02:01.2]} 9. Nge2 {[%clk 0:02:41.4]} 9...
Qb6 {[%clk 0:01:52.4]} 10. Rb1 {[%clk 0:02:12.7]} 10... Rg8 {[%clk 0:01:19.2]}
11. g3 {[%clk 0:02:08.8]} 11... Nd7 {[%clk 0:01:05.7]} 12. Bg2 {[%clk
0:02:06.2]} 12... Ne5 {[%clk 0:01:04.8]} 13. Nf4 {[%clk 0:02:02.6]} 13... Bd7
{[%clk 0:00:56.9]} 14. dxe6 {[%clk 0:01:58.8]} 14... fxe6 {[%clk 0:00:54]} 15.
Qh5+ {[%clk 0:01:55.6]} 15... Kd8 {[%clk 0:00:51.1]} 16. O-O {[%clk 0:01:50.7]}
16... Kc7 {[%clk 0:00:45.7]} 17. Ncd5+ {[%clk 0:01:44.6]} 1-0

[Event "Late-Titled-Tuesday-Blitz-April-30-2024"]
[Site "Chess.com"]
[Date "2024.04.30"]
[Round "2"]
[White "semchik90"]
[Black "Revan_2002"]
[Result "0-1"]
[WhiteElo "2412"]
[BlackElo "2757"]
[TimeControl "180+1"]
[EndTime "14:15:29 PDT"]
[Termination "Revan_2002 won by checkmate"]

1. Nf3 {[%clk 0:03:00.3]} 1... Nf6 {[%clk 0:02:58.4]} 2. c4 {[%clk 0:03:00.5]}
2... b6 {[%clk 0:02:57.9]} 3. d4 {[%clk 0:02:58.9]} 3... Bb7 {[%clk 0:02:57.5]}
4. g3 {[%clk 0:02:59.5]} 4... g6 {[%clk 0:02:56.1]} 5. Bg2 {[%clk 0:02:59.8]}
5... Bg7 {[%clk 0:02:56.5]} 6. O-O {[%clk 0:03:00.1]} 6... e6 {[%clk 0:02:57]}
7. Nc3 {[%clk 0:03:00.7]} 7... Ne4 {[%clk 0:02:57.3]} 8. Qc2 {[%clk 0:02:58]}
8... Nxc3 {[%clk 0:02:54.4]} 9. bxc3 {[%clk 0:02:56.8]} 9... O-O {[%clk
0:02:54.3]} 10. e4 {[%clk 0:02:56.7]} 10... d6 {[%clk 0:02:54.8]} 11. Be3 {[%clk
0:02:52.1]} 11... Nd7 {[%clk 0:02:54]} 12. Rfd1 {[%clk 0:02:50.6]} 12... Qe7
{[%clk 0:02:53.6]} 13. a4 {[%clk 0:02:48.4]} 13... a5 {[%clk 0:02:52.9]} 14.
Rab1 {[%clk 0:02:40.7]} 14... Ba6 {[%clk 0:02:50.3]} 15. Nd2 {[%clk 0:02:38.1]}
15... e5 {[%clk 0:02:50.2]} 16. f4 {[%clk 0:02:34.4]} 16... Nf6 {[%clk
0:02:45.9]} 17. c5 {[%clk 0:02:24.3]} 17... bxc5 {[%clk 0:02:42.5]} 18. dxe5
{[%clk 0:02:11.4]} 18... Ng4 {[%clk 0:02:37.8]} 19. exd6 {[%clk 0:02:03.2]}
19... cxd6 {[%clk 0:02:38.7]} 20. Bf2 {[%clk 0:01:55]} 20... Nxf2 {[%clk
0:02:36.2]} 21. Kxf2 {[%clk 0:01:55.9]} 21... Rab8 {[%clk 0:02:36.4]} 22. Rxb8
{[%clk 0:01:50.2]} 22... Rxb8 {[%clk 0:02:37.3]} 23. Rb1 {[%clk 0:01:50.1]}
23... Rxb1 {[%clk 0:02:32.4]} 24. Nxb1 {[%clk 0:01:49.6]} 24... h5 {[%clk
0:02:28.5]} 25. Qb3 {[%clk 0:01:45.9]} 25... Bd3 {[%clk 0:02:24.8]} 26. Nd2
{[%clk 0:01:45]} 26... c4 {[%clk 0:02:11]} 27. Nxc4 {[%clk 0:01:28.1]} 27... d5
{[%clk 0:02:05]} 28. Qb8+ {[%clk 0:01:18]} 28... Kh7 {[%clk 0:02:04.5]} 29. Ne5
{[%clk 0:01:07.4]} 29... Qc5+ {[%clk 0:01:59.5]} 30. Kf3 {[%clk 0:00:57.9]}
30... dxe4# {[%clk 0:01:57.7]} 0-1

[Event "Late-Titled-Tuesday-Blitz-April-30-2024"]
[Site "Chess.com"]
[Date "2024.04.30"]
[Round "2"]
[White "Mugiwara2b"]
[Black "OparinGrigoriy"]
[Result "0-1"]
[WhiteElo "2615"]
[BlackElo "2993"]
[TimeControl "180+1"]
[EndTime "14:15:34 PDT"]
[Termination "OparinGrigoriy won by checkmate"]

1. e4 {[%clk 0:01:16.2]} 1... c6 {[%clk 0:02:59.9]} 2. Nf3 {[%clk 0:01:15.4]}
2... d5 {[%clk 0:03:00.8]} 3. exd5 {[%clk 0:01:15]} 3... cxd5 {[%clk 0:03:01.7]}
4. Ne5 {[%clk 0:01:14.9]} 4... Nc6 {[%clk 0:03:00.6]} 5. d4 {[%clk 0:01:15]}
5... Nf6 {[%clk 0:02:59.6]} 6. Bb5 {[%clk 0:01:14.2]} 6... Bd7 {[%clk
0:02:59.9]} 7. Nxd7 {[%clk 0:01:14.9]} 7... Qxd7 {[%clk 0:03:00.8]} 8. c3 {[%clk
0:01:14.8]} 8... e6 {[%clk 0:03:01.4]} 9. O-O {[%clk 0:01:15.1]} 9... Bd6 {[%clk
0:03:02.1]} 10. Nd2 {[%clk 0:01:14]} 10... Qc7 {[%clk 0:03:02.6]} 11. g3 {[%clk
0:01:14.2]} 11... O-O {[%clk 0:03:02.5]} 12. Re1 {[%clk 0:01:12]} 12... Rae8
{[%clk 0:02:59.2]} 13. Nf3 {[%clk 0:01:08.3]} 13... Ne4 {[%clk 0:02:57.8]} 14.
a4 {[%clk 0:00:48.3]} 14... a6 {[%clk 0:02:56.5]} 15. Bd3 {[%clk 0:00:48.3]}
15... f5 {[%clk 0:02:57]} 16. Nh4 {[%clk 0:00:43.1]} 16... e5 {[%clk 0:02:46.1]}
17. Nf3 {[%clk 0:00:38.7]} 17... exd4 {[%clk 0:02:42]} 18. Nxd4 {[%clk
0:00:38.9]} 18... Nxd4 {[%clk 0:02:42.3]} 19. cxd4 {[%clk 0:00:39.8]} 19... f4
{[%clk 0:02:38.5]} 20. Qb3 {[%clk 0:00:38.9]} 20... fxg3 {[%clk 0:02:29.7]} 21.
Qxd5+ {[%clk 0:00:37.2]} 21... Kh8 {[%clk 0:02:29.8]} 22. hxg3 {[%clk
0:00:35.3]} 22... Bxg3 {[%clk 0:02:27.2]} 23. Rxe4 {[%clk 0:00:20.5]} 23...
Bxf2+ {[%clk 0:02:27.6]} 24. Kh1 {[%clk 0:00:20.8]} 24... Qg3 {[%clk 0:02:27]}
25. Bf4 {[%clk 0:00:17.1]} 25... Qh3+ {[%clk 0:02:20.7]} 26. Bh2 {[%clk
0:00:17.4]} 26... Qf3# {[%clk 0:02:21.2]} 0-1

[Event "Late-Titled-Tuesday-Blitz-April-30-2024"]
[Site "Chess.com"]
[Date "2024.04.30"]
[Round "2"]
[White "Mihajlovskij"]
[Black "FoggyMorning"]
[Result "0-1"]
[WhiteElo "2214"]
[BlackElo "2485"]
[TimeControl "180+1"]
[EndTime "14:15:45 PDT"]
[Termination "FoggyMorning won by resignation"]

1. e4 {[%clk 0:03:00.9]} 1... e6 {[%clk 0:03:00.4]} 2. d4 {[%clk 0:03:00.4]}
2... d5 {[%clk 0:03:01.3]} 3. e5 {[%clk 0:03:01.3]} 3... c5 {[%clk 0:03:00.7]}
4. c3 {[%clk 0:03:02.2]} 4... Qb6 {[%clk 0:03:01.3]} 5. Nf3 {[%clk 0:03:02.3]}
5... Nc6 {[%clk 0:03:01.9]} 6. Bd3 {[%clk 0:03:01.5]} 6... cxd4 {[%clk
0:03:02.3]} 7. O-O {[%clk 0:03:01.9]} 7... Bd7 {[%clk 0:02:59.7]} 8. Re1 {[%clk
0:03:02.2]} 8... Nge7 {[%clk 0:02:59.3]} 9. h4 {[%clk 0:03:02.1]} 9... Rc8
{[%clk 0:02:58.1]} 10. Nbd2 {[%clk 0:03:01]} 10... dxc3 {[%clk 0:02:52.5]} 11.
bxc3 {[%clk 0:03:01.9]} 11... Nf5 {[%clk 0:02:47]} 12. Rb1 {[%clk 0:02:58.2]}
12... Qc7 {[%clk 0:02:39.1]} 13. c4 {[%clk 0:02:54.2]} 13... d4 {[%clk
0:01:57.1]} 14. Ne4 {[%clk 0:02:30.7]} 14... Be7 {[%clk 0:01:53.3]} 15. g3
{[%clk 0:02:29.3]} 15... O-O {[%clk 0:01:52.7]} 16. Bf4 {[%clk 0:02:25.6]} 16...
Nb4 {[%clk 0:01:46.8]} 17. Rxb4 {[%clk 0:02:14.3]} 17... Bxb4 {[%clk 0:01:46.4]}
18. Nf6+ {[%clk 0:02:11.1]} 18... gxf6 {[%clk 0:01:22.6]} 19. exf6 {[%clk
0:02:10.8]} 19... Bd6 {[%clk 0:01:23.3]} 20. Ne5 {[%clk 0:02:09.8]} 20... Kh8
{[%clk 0:01:17.3]} 21. Qg4 {[%clk 0:01:54]} 21... Bxe5 {[%clk 0:01:04.5]} 22.
Bxe5 {[%clk 0:01:54]} 22... Rg8 {[%clk 0:01:05.2]} 23. Qh5 {[%clk 0:01:36.7]}
23... Qa5 {[%clk 0:00:58]} 24. Rd1 {[%clk 0:01:28]} 0-1

[Event "Late-Titled-Tuesday-Blitz-April-30-2024"]
[Site "Chess.com"]
[Date "2024.04.30"]
[Round "2"]
[White "SandwichOSaumon"]
[Black "IlanSchnaider"]
[Result "0-1"]
[WhiteElo "2409"]
[BlackElo "2735"]
[TimeControl "180+1"]
[EndTime "14:15:47 PDT"]
[Termination "IlanSchnaider won by resignation"]

1. e4 {[%clk 0:03:00.9]} 1... c5 {[%clk 0:02:59.7]} 2. Nf3 {[%clk 0:02:59]} 2...
d6 {[%clk 0:02:59.7]} 3. Bb5+ {[%clk 0:02:59.3]} 3... Bd7 {[%clk 0:02:59]} 4.
Bxd7+ {[%clk 0:03:00]} 4... Nxd7 {[%clk 0:02:59.3]} 5. O-O {[%clk 0:03:00.9]}
5... Ngf6 {[%clk 0:02:58.9]} 6. Re1 {[%clk 0:03:00.5]} 6... e6 {[%clk
0:02:58.6]} 7. c3 {[%clk 0:03:00.6]} 7... Be7 {[%clk 0:02:57.6]} 8. d4 {[%clk
0:03:00.9]} 8... cxd4 {[%clk 0:02:57.4]} 9. cxd4 {[%clk 0:03:01.8]} 9... d5
{[%clk 0:02:58]} 10. e5 {[%clk 0:03:01.8]} 10... Ne4 {[%clk 0:02:57.9]} 11. Nc3
{[%clk 0:03:01.6]} 11... Nxc3 {[%clk 0:02:57.4]} 12. bxc3 {[%clk 0:03:02.5]}
12... O-O {[%clk 0:02:57.6]} 13. Qd3 {[%clk 0:03:01.5]} 13... Rc8 {[%clk
0:02:55.2]} 14. Bd2 {[%clk 0:03:00.9]} 14... Nb6 {[%clk 0:02:51.8]} 15. h4
{[%clk 0:03:00.6]} 15... Bxh4 {[%clk 0:02:36.4]} 16. g3 {[%clk 0:03:00.8]} 16...
Be7 {[%clk 0:02:35.4]} 17. Kg2 {[%clk 0:03:01]} 17... h6 {[%clk 0:02:18.1]} 18.
Rh1 {[%clk 0:03:00.2]} 18... f5 {[%clk 0:02:09.8]} 19. Be3 {[%clk 0:02:51.6]}
19... Nc4 {[%clk 0:02:05.9]} 20. Bc1 {[%clk 0:02:40.2]} 20... Qe8 {[%clk
0:02:02.4]} 21. Nh4 {[%clk 0:02:28.4]} 21... Qf7 {[%clk 0:01:48.4]} 22. f4
{[%clk 0:02:27.8]} 22... Rc7 {[%clk 0:01:42.6]} 23. Kf2 {[%clk 0:02:26.9]} 23...
Rfc8 {[%clk 0:01:42.3]} 24. Qe2 {[%clk 0:02:14.4]} 24... Bxh4 {[%clk 0:01:25.3]}
25. Rxh4 {[%clk 0:02:13.6]} 25... Qg6 {[%clk 0:01:25.9]} 26. Rb1 {[%clk
0:02:06.2]} 26... b6 {[%clk 0:01:00.2]} 27. Rb3 {[%clk 0:01:49]} 27... Na5
{[%clk 0:01:00.2]} 28. Ra3 {[%clk 0:01:39.5]} 28... Rxc3 {[%clk 0:00:59.3]} 29.
Rxc3 {[%clk 0:01:39.8]} 29... Rxc3 {[%clk 0:01:00.2]} 30. Bd2 {[%clk 0:01:40.4]}
30... Qxg3+ {[%clk 0:01:00.1]} 0-1

[Event "Late-Titled-Tuesday-Blitz-April-30-2024"]
[Site "Chess.com"]
[Date "2024.04.30"]
[Round "2"]
[White "norwaytoadog"]
[Black "Mikhal867"]
[Result "0-1"]
[WhiteElo "2343"]
[BlackElo "2543"]
[TimeControl "180+1"]
[EndTime "14:15:47 PDT"]
[Termination "Mikhal867 won by resignation"]

1. e4 {[%clk 0:02:59.9]} 1... g6 {[%clk 0:02:59.8]} 2. d4 {[%clk 0:02:59.8]}
2... Bg7 {[%clk 0:03:00.2]} 3. Nc3 {[%clk 0:03:00.4]} 3... d6 {[%clk 0:03:00.6]}
4. Be3 {[%clk 0:02:59.4]} 4... a6 {[%clk 0:03:00.1]} 5. Qd2 {[%clk 0:02:59.3]}
5... b5 {[%clk 0:03:00.2]} 6. Nf3 {[%clk 0:02:55]} 6... Nd7 {[%clk 0:03:00.2]}
7. Bd3 {[%clk 0:02:53.2]} 7... Nb6 {[%clk 0:02:55.4]} 8. b3 {[%clk 0:02:39.3]}
8... Nf6 {[%clk 0:02:50.6]} 9. h3 {[%clk 0:02:36.6]} 9... b4 {[%clk 0:02:46.4]}
10. Ne2 {[%clk 0:02:33.8]} 10... Bb7 {[%clk 0:02:41.5]} 11. Ng3 {[%clk
0:02:32.5]} 11... c5 {[%clk 0:02:32.4]} 12. dxc5 {[%clk 0:02:12.5]} 12... Nxe4
{[%clk 0:02:26.3]} 13. Bxe4 {[%clk 0:02:02.2]} 13... Bxa1 {[%clk 0:01:59.5]} 14.
Bd4 {[%clk 0:01:57.4]} 14... Bxd4 {[%clk 0:01:57]} 15. cxb6 {[%clk 0:01:48.9]}
15... Bc3 {[%clk 0:01:54.5]} 16. Bxb7 {[%clk 0:01:44.2]} 16... Rb8 {[%clk
0:01:35]} 17. Bc6+ {[%clk 0:01:43.7]} 17... Kf8 {[%clk 0:01:35]} 18. Qxc3 {[%clk
0:01:22.6]} 18... bxc3 {[%clk 0:01:33.5]} 19. h4 {[%clk 0:01:19.8]} 19... Rxb6
{[%clk 0:01:29.7]} 20. Be4 {[%clk 0:01:18.2]} 20... d5 {[%clk 0:01:29.2]} 21.
Bd3 {[%clk 0:01:17.9]} 21... e5 {[%clk 0:01:25.6]} 0-1

[Event "Late-Titled-Tuesday-Blitz-April-30-2024"]
[Site "Chess.com"]
[Date "2024.04.30"]
[Round "2"]
[White "GaiozNigalidze"]
[Black "Godzillator"]
[Result "1-0"]
[WhiteElo "2732"]
[BlackElo "2409"]
[TimeControl "180+1"]
[EndTime "14:15:50 PDT"]
[Termination "GaiozNigalidze won by resignation"]

1. e4 {[%clk 0:03:00.9]} 1... d5 {[%clk 0:02:59.7]} 2. exd5 {[%clk 0:02:57.2]}
2... Qxd5 {[%clk 0:02:59.7]} 3. Nf3 {[%clk 0:02:57]} 3... Bg4 {[%clk 0:02:58.7]}
4. Be2 {[%clk 0:02:56.7]} 4... Nf6 {[%clk 0:02:58.4]} 5. d4 {[%clk 0:02:55.5]}
5... c6 {[%clk 0:02:58.2]} 6. c4 {[%clk 0:02:53.6]} 6... Qd8 {[%clk 0:02:58.1]}
7. Nc3 {[%clk 0:02:52.9]} 7... e6 {[%clk 0:02:58.4]} 8. O-O {[%clk 0:02:51.9]}
8... Be7 {[%clk 0:02:58.4]} 9. Be3 {[%clk 0:02:51.2]} 9... O-O {[%clk
0:02:58.3]} 10. Rc1 {[%clk 0:02:43.8]} 10... Nbd7 {[%clk 0:02:58.3]} 11. Re1
{[%clk 0:02:42]} 11... Qa5 {[%clk 0:02:56.6]} 12. a3 {[%clk 0:02:39.9]} 12...
Rad8 {[%clk 0:02:55.9]} 13. h3 {[%clk 0:02:37.7]} 13... Bh5 {[%clk 0:02:55.5]}
14. Qb3 {[%clk 0:02:28.3]} 14... Qc7 {[%clk 0:02:49.9]} 15. Qa4 {[%clk
0:02:25.4]} 15... Qb8 {[%clk 0:02:48.7]} 16. b4 {[%clk 0:02:24.7]} 16... Nb6
{[%clk 0:02:45.7]} 17. Qb3 {[%clk 0:02:23.6]} 17... a6 {[%clk 0:02:43.3]} 18.
Ne5 {[%clk 0:02:20.2]} 18... Bxe2 {[%clk 0:02:41.8]} 19. Rxe2 {[%clk 0:02:21.1]}
19... Nfd7 {[%clk 0:02:38.7]} 20. f4 {[%clk 0:02:16.3]} 20... Nxe5 {[%clk
0:02:38.3]} 21. dxe5 {[%clk 0:02:06.7]} 21... Qc7 {[%clk 0:02:07.7]} 22. Ne4
{[%clk 0:02:03.2]} 22... Rd7 {[%clk 0:02:01.4]} 23. Nd6 {[%clk 0:01:52.9]} 23...
Nc8 {[%clk 0:01:53.5]} 24. c5 {[%clk 0:01:49.3]} 24... b5 {[%clk 0:01:44.1]} 25.
Rd1 {[%clk 0:01:22.7]} 25... Qa7 {[%clk 0:01:38.2]} 26. f5 {[%clk 0:01:19.4]}
26... exf5 {[%clk 0:01:35.6]} 27. e6 {[%clk 0:01:19]} 27... fxe6 {[%clk
0:01:24.6]} 28. Qxe6+ {[%clk 0:01:17.4]} 28... Kh8 {[%clk 0:01:24.1]} 29. Nf7+
{[%clk 0:01:17]} 29... Rxf7 {[%clk 0:01:23.9]} 30. Rxd7 {[%clk 0:01:16.9]} 1-0

[Event "Late-Titled-Tuesday-Blitz-April-30-2024"]
[Site "Chess.com"]
[Date "2024.04.30"]
[Round "2"]
[White "Rutricks"]
[Black "NovakRatko"]
[Result "1-0"]
[WhiteElo "2687"]
[BlackElo "2380"]
[TimeControl "180+1"]
[EndTime "14:15:51 PDT"]
[Termination "Rutricks won by resignation"]

1. c4 {[%clk 0:02:59.8]} 1... c6 {[%clk 0:02:53.5]} 2. Nf3 {[%clk 0:02:58.6]}
2... d5 {[%clk 0:02:53.1]} 3. e3 {[%clk 0:02:59.3]} 3... f6 {[%clk 0:02:51.5]}
4. d4 {[%clk 0:02:55.7]} 4... Bg4 {[%clk 0:02:50.3]} 5. Qb3 {[%clk 0:02:54.1]}
5... Qd7 {[%clk 0:02:46.2]} 6. Nc3 {[%clk 0:02:52.3]} 6... Bxf3 {[%clk
0:02:43.5]} 7. gxf3 {[%clk 0:02:52.1]} 7... e6 {[%clk 0:02:43.8]} 8. cxd5 {[%clk
0:02:45.6]} 8... exd5 {[%clk 0:02:43]} 9. e4 {[%clk 0:02:45.9]} 9... dxe4 {[%clk
0:02:39.1]} 10. Bc4 {[%clk 0:02:36]} 10... Nh6 {[%clk 0:02:01.9]} 11. Bxh6
{[%clk 0:02:32.1]} 11... gxh6 {[%clk 0:02:01.1]} 12. O-O-O {[%clk 0:02:27.9]}
12... a6 {[%clk 0:00:50.6]} 13. Nxe4 {[%clk 0:02:09.8]} 13... Be7 {[%clk
0:00:46]} 14. Rhe1 {[%clk 0:02:09]} 14... Kd8 {[%clk 0:00:44]} 15. d5 {[%clk
0:02:08.1]} 15... c5 {[%clk 0:00:14.1]} 16. d6 {[%clk 0:02:04.9]} 16... Bf8
{[%clk 0:00:14.3]} 17. Nxc5 {[%clk 0:02:03.6]} 17... Qc6 {[%clk 0:00:12]} 18.
Nxb7+ {[%clk 0:01:59.6]} 18... Kc8 {[%clk 0:00:12]} 1-0